Cogmind - Beta 13 @@@ ROGUE MODE // 2024.04.12 @ 13:48:47 Player: SYPIAC Result: Destroyed by W5-EQJ(R) with Subdweller Beam Cannon Performance ------------- Evolutions (0) 0 Regions Visited (2) 400 Robots Destroyed (13) 65 Value Destroyed (369) 369 Prototype IDs (2) 40 Alien Tech Used (0) 0 Bonus (0) 0 TOTAL SCORE: 874 Bonus ------- None Cogmind --------- Core Integrity 0/250 Matter 152/300 Energy 131/160 System Corruption 0% Temperature Cool (9) Movement Rolling (110) Ox2 Location -10/Subcaves Parts ------- > --- POWER (1) -------- Light Nuclear Core > --- PROPULSION (2) --- Aluminum Leg Wheel > --- UTILITY (2) ------ Medium Storage Unit Makeshift Light Armor Plating > --- WEAPON (2) ------- Riot Gun Subdweller Machine Gun > --- INVENTORY (10) --- Ion Engine Subdweller Power Source Aluminum Leg Wheel Improved Heat Sink Improved Terrain Scanner Particle Gun Subdweller Laser Flamer Peak State ------------ > --- POWER ------------ Light Nuclear Core > --- PROPULSION ------- Aluminum Leg Subdweller Monowheel > --- UTILITY ---------- Medium Storage Unit Makeshift Light Armor Plating > --- WEAPON ----------- Subdweller Laser Battle Cannon > --- INVENTORY -------- Ion Engine Subdweller Power Source Aluminum Leg Wheel Improved Heat Sink Improved Terrain Scanner Particle Gun Subdweller Machine Gun Mining Laser Flamer [Rating: 16] Favorites ----------- Power Light Nuclear Core Engine Ion Engine Power Core Light Nuclear Core Propulsion Aluminum Leg Leg Aluminum Leg Wheel Subdweller Monowheel Utility Medium Storage Unit Device Improved Heat Sink Storage Medium Storage Unit Protection Makeshift Light Armor Plating Weapon Subdweller Laser Energy Gun Subdweller Laser Energy Cannon Subdweller Beam Cannon Ballistic Gun Assault Rifle Ballistic Cannon Battle Cannon Special Weapon Mining Laser Build | -11 -10 -10 ------- Run | Yrd Mat Sub Slots Evolved . | . . . Power . | . . . Propulsion . | . . . Utility . | . . . Weapon . | . . . Parts Attached 36 | . 13 23 Power 3 | . 1 2 Engine 1 | . . 1 Core 2 | . 1 1 Reactor . | . . . Propulsion 7 | . 3 4 Treads . | . . . Leg 4 | . 2 2 Wheel 3 | . 1 2 Hover . | . . . Flight . | . . . Utility 14 | . 6 8 Device 8 | . 3 5 Storage 2 | . 1 1 Processor . | . . . Hackware . | . . . Protection 4 | . 2 2 Artifact . | . . . Weapon 12 | . 3 9 Energy Gun 6 | . 2 4 Energy Cannon 1 | . . 1 Ballistic Gun 2 | . 1 1 Ballistic Cannon 1 | . . 1 Launcher . | . . . Special Weapon 2 | . . 2 Impact Weapon . | . . . Slashing Weapon . | . . . Piercing Weapon . | . . . Special Melee Weapon . | . . . Unidentified Prototypes . | . . . Parts Lost 7 | . 2 5 Power . | . . . Propulsion 1 | . . 1 Utility 2 | . 1 1 Weapon 4 | . 1 3 Highest Loss Streak 2 | . 2 2 To Critical Strikes . | . . . Average Slot Usage (%) 95 | . 91 97 Engine 6 | . 10 3 Core 7 | . 3 10 Leg 18 | . 27 13 Wheel 8 | . . 14 Device 8 | . 5 10 Storage 14 | . 14 14 Protection 1 | . . 2 Energy Gun 17 | . 17 16 Ballistic Gun 3 | . 10 . Ballistic Cannon 4 | . . 6 Naked Turns . | . . . Heaviest Build 28 | 13 23 28 Greatest Support 20 | 20 20 20 Greatest Overweight (x) 2 | . 2 2 Average Overweight (x) 1 | . . 1 Largest Inventory Capacity 10 | . 10 10 Average Capacity 9 | . 8 10 Most Carried 10 | . 9 10 Average Carried 8 | . 7 8 Final Capacity 10 | 8 10 10 Final Carried 9 | 6 9 9 Class Distribution -------------------- 61% | Scavenger-Mutant 38% | Mutant Dominant Class ---------------- Mutant | -10/Materials Scavenger-Mutant | -10/Subcaves Resources | -11 -10 -10 ----------- Run | Yrd Mat Sub Matter Collected 735 | 161 416 158 Remotely . | . . . Salvage Created 445 | . 281 164 Parts 29 | . 17 12 Haulers Intercepted . | . . . Recyclers Shooed . | . . . Parts Field Recycled . | . . . Retrieved Matter . | . . . Parts Self-Destructed 24 | . . 24 Prevented . | . . . Kills | -11 -10 -10 ------- Run | Yrd Mat Sub Combat Hostiles Destroyed 11 | . 5 6 Guns 8 | . 5 3 Cannons 3 | . . 3 Classes Destroyed 6 | . 4 2 Worker 1 | . 1 . Tunneler 1 | . 1 . Swarmer 3 | . . 3 Grunt 2 | . 2 . Cobbler 1 | . . 1 Subdweller 6 | . 3 3 Best Kill Streak 3 | . 3 3 Combat Bots Only 3 | . 2 3 Max Kills in Single Turn 1 | . 1 1 Gunslinging . | . . . Exploded . | . . . Melee . | . . . Uniques/NPCs Destroyed . | . . . Combat | -11 -10 -10 -------- Run | Yrd Mat Sub Hostile Shots Fired 107 | . 33 74 Missed 25 | . 6 19 Damage Taken 1378 | . 518 860 Core 251 | . 77 174 Absorbed by Shields . | . . . Core Remaining (%) 100 | 100 . . Volleys Fired 72 | . 23 49 Largest 2 | . 2 2 Hottest 180 | . 125 180 Shots Fired 114 | . 42 72 Gun 81 | . 42 39 Cannon 28 | . . 28 Launcher . | . . . Special 5 | . . 5 Kinetic 41 | . 19 22 Thermal 59 | . 14 45 Explosive . | . . . Electromagnetic 14 | . 9 5 Robot Hit Streak 21 | . 21 10 Robot Miss Streak 4 | . 4 3 Penetration Max . | . . . Secondary Targets . | . . . Shots Hit Robots 74 | . 31 43 Core Hits 24 | . 12 12 Critical Kills . | . . . Critical Parts Destroyed . | . . . Critical Strikes 3 | . 1 2 Burn 1 | . . 1 Destroy 2 | . 1 1 Melee Attacks . | . . . Impact . | . . . Slashing . | . . . Piercing . | . . . Sneak Attacks . | . . . Combat Hostiles . | . . . Follow-up Attacks . | . . . Damage Inflicted 1351 | . 524 827 Guns 970 | . 425 545 Cannons 272 | . . 272 Explosions 99 | . 99 . Melee . | . . . Ramming . | . . . Kinetic 480 | . 199 281 Thermal 680 | . 214 466 Explosive . | . . . Electromagnetic 191 | . 111 80 Impact . | . . . Slashing . | . . . Piercing . | . . . Highest Corruption . | . . . Average Corruption . | . . . Corruption Purged . | . . . Corruption Blocked . | . . . Overload Shots . | . . . Overflow Damage . | . . . Projectiles . | . . . Explosions . | . . . Melee . | . . . Knockbacks 1 | . . 1 Impact . | . . . Kinetic 1 | . . 1 Secondary . | . . . Self-Inflicted Damage . | . . . Shots . | . . . Rammed . | . . . Targets Rammed . | . . . Kicked . | . . . Crushed . | . . . Highest Temperature 177 | . 177 20 Average Temperature 51 | . 65 7 Received Heat Transfer 264 | . 69 195 Siege Activations . | . . . Robots Corrupted . | . . . Combat Hostiles . | . . . Parts Fried . | . . . Impact Corruptions . | . . . Robots Melted . | . . . Combat Hostiles . | . . . Parts Melted 2 | . 2 . Heat Transferred 1172 | . 262 910 Parts Sabotaged . | . . . Parts Stolen . | . . . Parts Stripped . | . . . Power Chain Reactions 1 | . 1 . Alert | -11 -10 -10 ------- Run | Yrd Mat Sub Peak Influence 90 | . 90 . Initial . | . . . Average 33 | . 33 . Maximum Alert Level . | . . . Low Security (%) 100 | . 100 . Level 1 . | . . . Level 2 . | . . . Level 3 . | . . . Level 4 . | . . . Level 5 . | . . . High Security . | . . . Max Security . | . . . Squads Dispatched 3 | . 3 . Investigation 1 | . 1 . Extermination . | . . . Reinforcement 2 | . 2 . Assault . | . . . Garrison . | . . . Intercept . | . . . Searches Triggered . | . . . Construction Impeded . | . . . Haulers Reinforced . | . . . Active Scanning Responses . | . . . Cargo Convoy Interrupts . | . . . Stealth | -11 -10 -10 --------- Run | Yrd Mat Sub Distress Signals 1 | . 1 . Communications Jammed . | . . . Distress Signals . | . . . Times Spotted 19 | . 9 10 Peak Tracking Total 5 | . 4 5 Tactical Retreats 3 | . 2 1 Traps | -11 -10 -10 ------- Run | Yrd Mat Sub Traps Triggered . | . . . Indirectly . | . . . Trap Hack Attempts . | . . . Triggered . | . . . Disarmed . | . . . Reprogrammed . | . . . Reused . | . . . Traps Extracted . | . . . Installed . | . . . Triggered . | . . . Machines | -11 -10 -10 ---------- Run | Yrd Mat Sub Machines Disabled 1 | . 1 . Max in Single Turn 1 | . 1 . Machines Repaired . | . . . Machines Dismantled . | . . . Machines Sabotaged . | . . . Overloaded Fab Kills . | . . . Hacking | -11 -10 -10 --------- Run | Yrd Mat Sub Machines Accessed 4 | . 4 . Terminals 3 | . 3 . Fabricators . | . . . Repair Stations . | . . . Recycling Units 1 | . 1 . Scanalyzers . | . . . Garrison Access . | . . . Total Hacks 13 | . 13 . Successful 9 | . 9 . Failed 4 | . 4 . Catastrophic 1 | . 1 . Database Lockouts . | . . . Manual 7 | . 7 . Terminals 11 | . 11 . Fabricators . | . . . Repair Stations . | . . . Recycling Units 2 | . 2 . Scanalyzers . | . . . Garrison Access . | . . . Terminal Hacks 4 | . 4 . Prototype ID Bank 1 | . 1 . Locate Traps 1 | . 1 . Hauler Manifests 1 | . 1 . Zone Layout 1 | . 1 . Fabricator Hacks . | . . . Repair Station Hacks . | . . . Recycling Unit Hacks 1 | . 1 . Retrieve Components 1 | . 1 . Scanalyzer . | . . . Garrison Access Hacks . | . . . Unauthorized Hacks 4 | . 4 . Terminals 3 | . 3 . Track 1 | . 1 . Botnet 2 | . 2 . Fabricators . | . . . Repair Stations . | . . . Recycling Units 1 | . 1 . Tunnel 1 | . 1 . Scanalyzers . | . . . Garrison Access . | . . . Data Cores Recovered . | . . . Used . | . . . Hacking Detections 3 | . 3 . Full Trace Events 1 | . 1 . Feedback Events . | . . . Feedback Blocked . | . . . Robot Schematics Acquired . | . . . Robots Built . | . . . Authchips . | . . . Time . | . . . Total Robot Build Rating . | . . . Part Schematics Acquired . | . . . Parts Built . | . . . Authchips . | . . . Time . | . . . Total Part Build Rating . | . . . Parts Repaired . | . . . Time . | . . . Parts Recycled . | . . . Recycled Matter . | . . . Retrieved Matter . | . . . Retrieved Components 10 | . 10 . Parts Scanalyzed . | . . . Part Schematics Acquired . | . . . Parts Damaged . | . . . Bothacking | -11 -10 -10 ------------ Run | Yrd Mat Sub Used RIF Installer . | . . . Robots Hacked . | . . . Non-combat . | . . . Combat . | . . . Robot Hacks Applied . | . . . Relay Couplers Released . | . . . Fabnet Peak Effective % . | . . . Robots Rewired . | . . . Allies Hacked . | . . . Hacks Repelled . | . . . Allies | -11 -10 -10 -------- Run | Yrd Mat Sub Total Allies . | . . . Largest Group . | . . . Highest-Rated Group . | . . . Highest-Rated Ally . | . . . Total Orders . | . . . Ally Attacks . | . . . Total Damage . | . . . Kills . | . . . Allies Corrupted . | . . . Allies Melted . | . . . Intel | -11 -10 -10 ------- Run | Yrd Mat Sub Robot Analysis Total . | . . . Derelict Logs Recovered . | . . . Drone Launches . | . . . Drone Recoveries . | . . . Exploration | -11 -10 -10 ------------- Run | Yrd Mat Sub Turns Passed 2278 | . 887 1391 Spaces Moved 1033 | 1 357 675 Core . | . . . Treads . | . . . Legs 438 | 1 301 136 Wheels 595 | . 56 539 Hover . | . . . Flight . | . . . Fastest Speed 110 | 120 110 110 Average Speed 137 | 120 126 143 Slowest Speed 260 | 120 190 260 Overloaded Moves . | . . . Propulsion Burnouts . | . . . Robots Hopped . | . . . Cave-ins Triggered . | . . . Exploration Rate (%) 27 | 2 46 34 Regions Visited 2 Branch Regions 1 Pre-discovered Areas 2 | . 1 1 Known Exits Taken . | . . . Unknown Exits Taken 2 | 1 1 . Scrap Searched . | . . . Spaces Dug . | . . . Terrain Destroyed 7 | . 5 2 Melee . | . . . Projectile 2 | . . 2 AOE 5 | . 5 . Terrain Rammed . | . . . Walls Destroyed . | . . . Machines Disabled . | . . . Actions | -11 -10 -10 --------- Run | Yrd Mat Sub Total 1771 | . 751 1020 Wait 593 | . 338 255 Move 1031 | . 356 675 Hop . | . . . Pick Up 17 | . 9 8 Fast Attach 10 | . 6 4 Attach 9 | . 1 8 Detach 3 | . 1 2 Swap 17 | . 6 11 Drop 19 | . 11 8 Fire 72 | . 23 49 Melee . | . . . Ram . | . . . Kick . | . . . Crush . | . . . Escape Stasis . | . . . Rewire . | . . . Trap . | . . . Miscellaneous . | . . . Route ------- -11/Scrapyard -10/Materials (discovered 3 exits: [*Mat] / [*Min] / [*Sub]) -10/Subcaves (discovered 2 exits: [*Mat x2]) History --------- Turn | Location | Event 1 | -11/Scrapyard | Discovered new exit (range 0) 1 | -11/Scrapyard | Entered Materials 300 | -10/Materials | Build established: Mutant 316 | -10/Materials | Discovered new exit (range 7) 500 | -10/Materials | Derelicts attacked the area 730 | -10/Materials | Discovered new exit (range 13) 779 | -10/Materials | Discovered new exit (range 15) 888 | -10/Materials | Entered Subcaves 965 | -10/Subcaves | Build established: Scavenger-Mutant 1294 | -10/Subcaves | Shifting Twisted Machinery released Flamer 1296 | -10/Subcaves | Discovered new exit (range 9) 1327 | -10/Subcaves | Shifting Twisted Machinery released Sub. Beam Cannon 1414 | -10/Subcaves | Core integrity fell below 50% 1445 | -10/Subcaves | Shifting Twisted Machinery released Battle Cannon 1447 | -10/Subcaves | Discovered new exit (range 10) 1866 | -10/Subcaves | Shifting Twisted Machinery released Sub. Power Source 1869 | -10/Subcaves | Learned location of Zion (-7) 1869 | -10/Subcaves | Met a Zionite searching for "candidates" 1870 | -10/Subcaves | A swath of the cavern ceiling suddenly collapsed 1871 | -10/Subcaves | Shifting Twisted Machinery released Sub. Machine Gun 2250 | -10/Subcaves | Ambushed by angry Subdweller bent on revenge 2268 | -10/Subcaves | Core integrity fell below 20% 2279 | -10/Subcaves | Destroyed by W5-EQJ(R) with Subdweller Beam Cannon Last Messages --------------- 02058_ Sub. Monowheel shoots sparks and powers down. 02060_ Dropped Broken Sub. Monowheel. 02157_ Subatomizers dissect the Broken Sub. Monowheel, destroying it. 02237_ G9-FDC(O) cries out in pain. 02237_ G9-FDC(O) destroyed. 02241_ Subatomizers dissect the Wheel. 02246_ Acquired Riot Gun. 02247_ Acquired 49 matter. 02251_ W5-EQJ(R): "WEHOME!" 02251_ Dropped Mining Laser. 02251_ Acquired Wheel. 02266_ Subatomizers dissect the Mining Laser. 02266_ W5-EQJ(R) knocked back. 02269_ N4-U0O(u) tweaks Twisted Machinery. 02269_ Battle Cannon destroyed. 02277_ W5-EQJ(R) misfires. 02278_ Subatomizers dissect the Mining Laser, destroying it. Map ----- +----------------------------------------------------+ | ?????????????????????????????????????????????????? | | ?????????????????????????????????????????????????? | | ?????????????????????????????????????????????????? | | ?????????????????????????????????????????????????? | | ?????????????????????????????????????????????????? | | ###??????????????????????????????????????????????? | | ##?????????????????????????????????????????????? | | #####?????????????????????????????????????????? | | # ## ##???##???????????????????????????????????? | | # #### ##??????????????????????????????????? | | # #??????????????????????????????????? | | # ###??????????????????????????????????? | | # ##????????????????????????????????????? | | #?????????????????????????????????????? | | #?????????????????????????????????????? | | ##?????????????????????????????????????? | | #####?####??????????????###????????????????? | | #?????#""##?????????????# ####?????????????? | | # ##?????##""#????????#?#### #?????????????? | | # ######?#""#"""#???????# ## #?????????????? | | ## ## ##"###"###"#??????## ######????????? | | ## ""##"#""#######???## """# ##???????? | | ## "" """##"#"""#???# "" ""###?????? | | "#""# #"#"#""#?????# "" "#?????? | | """"###""" ""##????## ####### "" "#?????? | | ## "#"""###"""###"#?????#@ *###????# "" ""#????? | | ##""#" ##?####"""##?????## #??#?# """ #???? | | ### "" #???##"###??###### R### ### "" ???? | | ??### #??##""####?# ## ### ## ## ## ##???? | | ???#" ###?#"#### ### # ? ####???????? | | ???# ###""### ### ? ???????????? | | ???## ##""##"" ##?# ? ???????????? | | ????# """#" ## ##??#?? ???????????? | | ????# ## # ## " ### ##?????? ???????????? | | ?############ ### #??????? ???????????? | | ## "#####??## #?# #???????????????????? | | # #### #?? #???????????????????? | | #### #?? #???????????????????? | | # ###??# ##?? #???????????????????? | | # ##????# ##??? ???????????????????? | | # ##????# ##????"""???????????????????? | | ##????# ""#?????# "??????????????????? | | ###????# #??????#""??????????????????? | | #??????# #???????"???????????????????? | | ##??????#######???????????????????????????? | | #?????????????????????????????????????????? | | ##?????????????????????????????????????????? | | ####??????????????????????????????????????????? | | ####?????????????????????????????????????????????? | | ?????????????????????????????????????????????????? | +----------------------------------------------------+ Best States ------------- Heat Dissipation 39 Energy Generation 15 Energy Capacity 250 Matter Stores 500 Matter Capacity 500 Sight Range 21 Terrain Scan Range 16 Terrain Scan Density 10 Armor Coverage 150 Evasion (%) 55 Item Schematics ----------------- None Robot Schematics ------------------ None Fabricated ------------ Nothing Alien Tech Used ----------------- None Achievements -------------- None Challenges ------------ None Game ------ Seed ElectronStealthAxe Manual? 0 Play Time 00:18:04 Cumulative 58.9 hours Start 2024.04.12 @ 13:30:18 End 2024.04.12 @ 13:48:47 Sessions 1 Manual Loads 0 Difficulty Rogue Special Mode None Game No. 30 Rogue 30 Adventurer 0 Explorer 0 Win Type - Total 1 Types 1/0/0/0/0/0/0/0/0 Lore% 30 Gallery% 49 Achievement% 37 Wizard Run 0 Options --------- Layout 1 ASCII 0 Keyboard 0 Movement Mouse Keybinds 0 Fullscreen 2 Font 24/Smallcaps Map View 50x35 Zoom Use 0% Tactical HUD 1 Map Filters NONE Filters NONE Steam 1 RUN: daf2a00c-54b3-4652-808d-4ee27c509cc0